fUST/lending_fUST_20250227
["ID","MTS","AMOUNT","RATE_DAILY","PERIOD"]
[354681228,1740613841437,-500.0,0.00046575,120]
[354681229,1740613841447,-2578.79,0.00046575,120]
[354681230,1740613841455,-500.0,0.00046575,120]
[354681231,1740613841466,-501.87346695,0.00046575,120]
[354681232,1740613841474,-367.542311,0.00046575,120]
[354681233,1740613841484,-955.38,0.00046575,120]
[354681234,1740613841494,-500.12359795,0.00046575,120]
[354681235,1740613841503,-500.0,0.00046575,120]
[354681236,1740613841512,-500.0,0.00046575,120]
[354681237,1740613841521,-929.32,0.00046575,120]
[354681238,1740613841530,-500.0,0.00046575,120]
[354681239,1740613841539,-7158.58,0.00046575,120]
[354681240,1740613841548,-2084.86,0.00046575,120]
[354681241,1740613841556,-500.0,0.00046575,120]
[354681242,1740613841565,-500.0,0.00046575,120]
[354681243,1740613841574,-2733.25,0.000466,30]
[354681244,1740613841583,-4469.74,0.000466,30]
[354681245,1740613841593,-349.68,0.000466,30]
[354681246,1740613841602,-151.0,0.000466,22]
[354681247,1740613841611,-151.0,0.000466,21]
[354681248,1740613841620,-1000.0,0.00046601,120]
[354681249,1740613841629,-197.34363974,0.00046612,2]
[354681250,1740613841637,-1000.0,0.00046628,120]
[354681251,1740613841647,-370.45,0.00046655,120]
[354681252,1740613841656,-151.0,0.000467,21]
[354681253,1740613841665,-151.0,0.000467,23]
[354681254,1740613841675,-161.53529514,0.00046749,32]
[354681255,1740613841684,-197.34363974,0.00046749,2]
[354681256,1740613841694,-151.0,0.000468,21]
[354681257,1740613841703,-151.0,0.000468,21]
[354681258,1740613841712,-500.0,0.00046848,120]
[354681259,1740613841721,-500.0,0.00046849,120]
[354681260,1740613841730,-500.0,0.00046849,120]
[354681261,1740613841739,-500.0,0.00046849,120]
[354681262,1740613841752,-500.0,0.00046849,120]
[354681263,1740613841761,-500.0,0.00046849,120]
[354681264,1740613841770,-500.0,0.00046849,120]
[354681265,1740613841780,-500.0,0.00046849,120]
[354681266,1740613841791,-500.0,0.00046849,120]
[354681267,1740613841802,-500.0,0.00046849,120]
[354681268,1740613841811,-500.0,0.00046849,120]
[354681269,1740613841822,-500.0,0.00046849,120]
[354681270,1740613841831,-500.0,0.00046849,120]
[354681271,1740613841840,-500.0,0.00046849,120]
[354681272,1740613841849,-500.0,0.00046849,120]
[354681273,1740613841859,-500.0,0.00046849,120]
[354681274,1740613841868,-500.0,0.00046849,120]
[354681275,1740613841877,-519.61,0.00046849,120]
[354681276,1740613841887,-568.69,0.00046849,120]
[354681277,1740613841896,-500.0,0.00046849,120]
[354681278,1740613841906,-500.0,0.00046849,120]
[354681279,1740613841916,-500.0,0.00046849,120]
[354681280,1740613841926,-500.0,0.00046849,120]
[354681281,1740613841935,-500.0,0.00046849,120]
[354681282,1740613841946,-500.0,0.00046849,120]
[354681283,1740613841955,-500.0,0.00046849,120]
[354681284,1740613841964,-500.0,0.00046849,120]
[354681285,1740613841973,-500.0,0.00046849,120]
[354681286,1740613841982,-614.09908001,0.00046849,120]
[354681287,1740613841991,-500.0,0.00046849,120]
[354681288,1740613842000,-500.0,0.00046849,120]
[354681289,1740613842011,-500.0,0.00046849,120]
[354681290,1740613842021,-580.6935372,0.00046849,120]
[354681291,1740613842030,-500.0,0.00046849,120]
[354681292,1740613842039,-500.0,0.00046849,120]
[354681293,1740613842049,-500.0,0.00046849,120]
[354681294,1740613842058,-500.0,0.00046849,120]
[354681295,1740613842070,-500.0,0.00046849,120]
[354681296,1740613842079,-500.0,0.00046849,120]
[354681297,1740613842089,-500.0,0.00046849,120]
[354681298,1740613842098,-505.85227059,0.00046849,120]
[354681299,1740613842107,-500.0,0.00046849,120]
[354681300,1740613842117,-500.0,0.00046849,120]
[354681301,1740613842127,-500.0,0.00046849,120]
[354681302,1740613842135,-500.0,0.00046849,120]
[354681303,1740613842146,-500.0,0.00046849,120]
[354681304,1740613842155,-500.0,0.00046849,120]
[354681305,1740613842164,-505.96454435,0.00046849,120]
[354681306,1740613842174,-635.79,0.00046849,120]
[354681307,1740613842184,-500.0,0.00046849,120]
[354681308,1740613842194,-500.0,0.00046849,120]
[354681309,1740613842205,-500.0,0.00046849,120]
[354681310,1740613842218,-500.0,0.00046849,120]
[354681311,1740613842230,-500.0,0.00046849,120]
[354681312,1740613842241,-500.0,0.00046849,120]
[354681313,1740613842250,-500.0,0.00046849,120]
[354681314,1740613842259,-500.0,0.00046849,120]
[354681315,1740613842268,-500.0,0.00046849,120]
[354681316,1740613842277,-500.0,0.00046849,120]
[354681317,1740613842287,-500.0,0.00046849,120]
[354681318,1740613842295,-500.0,0.00046849,120]
[354681319,1740613842305,-511.83,0.00046849,120]
[354681320,1740613842315,-500.0,0.00046849,120]
[354681321,1740613842324,-592.25,0.00046849,120]
[354681322,1740613842333,-500.0,0.00046849,120]
[354681323,1740613842343,-500.0,0.00046849,120]
[354681324,1740613842353,-500.0,0.00046849,120]
[354681325,1740613842362,-500.0,0.00046849,120]
[354681326,1740613842371,-1129.48,0.00046849,120]
[354681327,1740613842380,-500.0,0.00046849,120]
[354681328,1740613842389,-568.89,0.00046849,120]
[354681329,1740613842399,-500.0,0.00046849,120]
[354681330,1740613842408,-565.7,0.00046849,120]
[354681331,1740613842418,-500.0,0.00046849,120]
[354681332,1740613842427,-500.0,0.00046849,120]
[354681333,1740613842436,-616.9,0.00046849,120]
[354681334,1740613842445,-500.0,0.00046849,120]
[354681335,1740613842455,-500.0,0.00046849,120]
[354681336,1740613842464,-919.39,0.00046849,120]
[354681337,1740613842474,-500.0,0.00046849,120]
[354681338,1740613842484,-500.0,0.00046849,120]
[354681339,1740613842493,-500.0,0.00046849,120]
[354681340,1740613842502,-504.29,0.00046849,120]
[354681341,1740613842513,-500.0,0.00046849,120]
[354681342,1740613842523,-500.0,0.00046849,120]
[354681343,1740613842532,-601.18,0.00046849,120]
[354681344,1740613842541,-500.0,0.00046849,120]
[354681345,1740613842550,-500.0,0.00046849,120]
[354681346,1740613842559,-500.0,0.00046849,120]
[354681347,1740613842568,-1815.53,0.00046849,120]
[354681348,1740613842577,-500.0,0.00046849,120]
[354681349,1740613842587,-500.0,0.00046849,120]
[354681350,1740613842596,-500.0,0.00046849,120]
[354681352,1740613842606,-500.0,0.00046849,120]
[354681353,1740613842615,-500.0,0.00046849,120]
[354681354,1740613842625,-509.32,0.00046849,120]
[354681355,1740613842634,-500.0,0.00046849,120]
[354681356,1740613842645,-1026.69,0.00046849,120]
[354681357,1740613842655,-500.0,0.00046849,120]
[354681358,1740613842664,-500.0,0.00046849,120]
[354681359,1740613842673,-500.0,0.00046849,120]
[354681360,1740613842682,-500.0,0.00046849,120]
[354681362,1740613842691,-500.0,0.00046849,120]
[354681363,1740613842700,-500.0,0.00046849,120]
[354681364,1740613842709,-500.0,0.00046849,120]
[354681374,1740613842843,-629.29682315,0.00046849,120]
[354681375,1740613842853,-500.0,0.00046849,120]
[354681376,1740613842862,-500.0,0.00046849,7]
[354681377,1740613842871,-500.0,0.00046849,120]
[354681378,1740613842880,-1369.02,0.00046849,120]
[354681379,1740613842889,-500.0,0.00046849,120]
[354681380,1740613842898,-500.0,0.00046849,120]
[354681381,1740613842908,-500.0,0.00046849,120]
[354681382,1740613842918,-500.0,0.00046849,120]
[354681383,1740613842927,-500.0,0.00046849,120]
[354681384,1740613842937,-500.0,0.00046849,120]
[354681385,1740613842946,-500.0,0.00046849,120]
[354681387,1740613842957,-569.91910783,0.00046849,120]
[354681388,1740613842966,-500.0,0.00046849,120]
[354681389,1740613842975,-1788.51,0.00046849,120]
[354681390,1740613842984,-500.0,0.00046849,120]
[354681391,1740613842994,-500.0,0.00046849,120]
[354681392,1740613843004,-500.0,0.00046849,120]
[354681393,1740613843013,-555.97,0.00046849,120]
[354681394,1740613843023,-500.0,0.00046849,120]
[354681396,1740613843032,-500.0,0.00046849,120]
[354681398,1740613843041,-502.65058164,0.00046849,120]
[354681400,1740613843050,-500.0,0.00046849,120]
[354681402,1740613843059,-500.0,0.00046849,120]
[354681404,1740613843071,-1510.38,0.00046849,120]
[354681406,1740613843081,-500.0,0.00046849,2]
[354681408,1740613843090,-500.0,0.00046849,120]
[354681410,1740613843099,-500.0,0.00046849,120]
[354681412,1740613843108,-1938.79,0.00046849,120]
[354681414,1740613843118,-500.0,0.00046849,120]
[354681416,1740613843127,-740.69,0.00046849,120]
[354681417,1740613843136,-500.0,0.00046849,120]
[354681418,1740613843147,-500.0,0.00046849,120]
[354681419,1740613843156,-500.0,0.00046849,120]
[354681421,1740613843164,-500.0,0.00046849,120]
[354681423,1740613843174,-540.44,0.00046849,120]
[354681425,1740613843182,-500.0,0.00046849,120]
[354681427,1740613843191,-428.24645437,0.00046849,120]
[354681428,1740613843201,-500.0,0.00046849,120]
[354681430,1740613843210,-500.0,0.00046849,120]
[354681431,1740613843218,-286.75,0.00046849,120]
[354681432,1740613843227,-500.0,0.00046849,120]
[354681433,1740613843237,-500.0,0.00046849,120]
[354681434,1740613843246,-1464.78,0.00046849,120]
[354681435,1740613843255,-500.0,0.00046849,120]
[354681436,1740613843264,-500.0,0.00046849,120]
[354681437,1740613843274,-500.0,0.00046849,120]
[354681438,1740613843283,-500.0,0.00046849,120]
[354681439,1740613843292,-500.0,0.00046849,120]
[354681440,1740613843301,-526.88,0.00046849,120]
[354681441,1740613843311,-1101.62,0.00046849,120]
[354681442,1740613843320,-500.0,0.00046849,120]
[354681443,1740613843329,-500.0,0.00046849,120]
[354681444,1740613843339,-500.0,0.00046849,120]
[354681445,1740613843348,-500.0,0.00046849,120]
[354681446,1740613843358,-500.0,0.00046849,120]
[354681447,1740613843367,-500.0,0.00046849,120]
[354681448,1740613843376,-500.0,0.00046849,120]
[354681449,1740613843386,-500.0,0.00046849,120]
[354681450,1740613843395,-989.24,0.00046849,120]
[354681451,1740613843405,-500.0,0.00046849,120]
[354681452,1740613843415,-500.0,0.00046849,120]
[354681453,1740613843425,-1070.07,0.00046849,120]
[354681454,1740613843434,-500.0,0.00046849,120]
[354681455,1740613843443,-500.0,0.00046849,120]
[354681456,1740613843452,-500.0,0.00046849,120]
[354681457,1740613843462,-599.18,0.00046849,120]
[354681458,1740613843471,-500.0,0.00046849,30]
[354681459,1740613843480,-500.0,0.00046849,120]
[354681460,1740613843489,-931.92,0.00046849,120]
[354681461,1740613843499,-500.0,0.00046849,120]
[354681462,1740613843508,-500.0,0.00046849,120]
[354681463,1740613843517,-2163.22,0.00046849,120]
[354681464,1740613843526,-500.0,0.00046849,120]
[354681465,1740613843536,-500.0,0.00046849,120]
[354681466,1740613843546,-500.0,0.00046849,120]
[354681467,1740613843555,-500.0,0.00046849,120]
[354681468,1740613843564,-976.03,0.00046849,120]
[354681469,1740613843573,-522.83,0.00046849,120]
[354681470,1740613843583,-500.0,0.00046849,120]
[354681471,1740613843592,-500.0,0.00046849,120]
[354681472,1740613843601,-500.0,0.00046849,120]
[354681473,1740613843610,-500.0,0.00046849,120]
[354681474,1740613843620,-500.0,0.00046849,120]
[354681475,1740613843629,-500.0,0.00046849,120]
[354681476,1740613843638,-500.0,0.00046849,120]
[354681477,1740613843647,-551.06,0.00046849,120]
[354681478,1740613843656,-500.0,0.00046849,120]
[354681479,1740613843666,-500.0,0.00046849,120]
[354681480,1740613843676,-500.0,0.00046849,120]
[354681481,1740613843685,-500.0,0.00046849,30]
[354681482,1740613843694,-500.0,0.00046849,120]
[354681483,1740613843704,-500.0,0.00046849,120]
[354681484,1740613843715,-300.0,0.00046849,120]
[354681485,1740613843725,-1192.75,0.00046849,120]
[354681486,1740613843735,-967.59,0.00046849,120]
[354681487,1740613843744,-934.57,0.00046849,120]
[354681488,1740613843753,-500.0,0.00046849,120]
[354681489,1740613843762,-796.65,0.00046849,120]
[354681490,1740613843771,-937.27,0.00046849,120]
[354681491,1740613843780,-695.91,0.00046849,120]
[354681492,1740613843790,-500.0,0.00046849,120]
[354681493,1740613843799,-500.0,0.00046849,120]
[354681494,1740613843808,-604.52516169,0.00046849,120]
[354681495,1740613843818,-572.25,0.00046849,120]
[354681496,1740613843827,-535.45,0.00046849,120]
[354681497,1740613843836,-500.0,0.00046849,120]
[354681498,1740613843845,-500.0,0.00046849,120]
[354681499,1740613843855,-500.0,0.00046849,120]
[354681500,1740613843864,-500.0,0.00046849,120]
[354681501,1740613843873,-500.0,0.00046849,120]
[354681502,1740613843883,-797.61,0.00046849,120]
[354681503,1740613843892,-1035.69,0.00046849,120]
[354681504,1740613843901,-500.0,0.00046849,120]
[354681505,1740613843910,-500.0,0.00046849,120]
[354681506,1740613843919,-500.0,0.00046849,120]
[354681507,1740613843931,-1204.13,0.00046849,120]
[354681508,1740613843940,-527.06,0.00046849,120]
[354681509,1740613843950,-1000.0,0.00046849,120]
[354681510,1740613843958,-616.17,0.00046849,120]
[354681511,1740613843968,-500.0,0.00046849,120]
[354681512,1740613843977,-500.0,0.00046849,120]
[354681513,1740613843986,-500.0,0.00046849,120]
[354681514,1740613843996,-500.0,0.00046849,120]
[354681515,1740613844005,-500.0,0.00046849,120]
[354681516,1740613844015,-500.0,0.00046849,120]
[354681517,1740613844024,-500.0,0.00046849,120]
[354681518,1740613844033,-500.0,0.00046849,120]
[354681519,1740613844042,-500.0,0.00046849,120]
[354681520,1740613844052,-500.0,0.00046849,14]
[354681521,1740613844061,-457.2308899,0.00046849,120]
[354681522,1740613844072,-500.0,0.00046849,120]
[354681523,1740613844083,-500.0,0.00046849,120]
[354681524,1740613844092,-425.40707381,0.00046849,120]
[354681525,1740613844101,-506.61536502,0.00046849,120]
[354681526,1740613844111,-500.0,0.00046849,15]
[354681527,1740613844120,-500.0,0.00046849,120]
[354681528,1740613844129,-500.0,0.00046849,120]
[354681529,1740613844139,-500.0,0.00046849,120]
[354681530,1740613844149,-500.0,0.00046849,120]
[354681531,1740613844159,-500.0,0.00046849,120]
[354681532,1740613844169,-500.0,0.00046849,120]
[354681533,1740613844178,-1943.35,0.00046849,120]
[354681534,1740613844187,-500.0,0.00046849,120]
[354681535,1740613844196,-500.0,0.00046849,120]
[354681536,1740613844206,-500.0,0.00046849,120]
[354681537,1740613844215,-500.0,0.00046849,120]
[354681538,1740613844224,-773.8,0.00046849,120]
[354681539,1740613844233,-500.0,0.00046849,120]
[354681540,1740613844242,-500.0,0.00046849,120]
[354681541,1740613844251,-500.0,0.00046849,120]
[354681542,1740613844260,-500.0,0.00046849,120]
[354681543,1740613844270,-863.42,0.00046849,120]
[354681544,1740613844279,-448.19325341,0.00046849,120]
[354681545,1740613844288,-604.08,0.00046849,120]
[354681546,1740613844297,-500.0,0.00046849,120]
[354681547,1740613844305,-500.0,0.00046849,120]
[354681548,1740613844314,-500.0,0.00046849,120]
[354681549,1740613844323,-500.0,0.00046849,120]
[354681550,1740613844332,-500.0,0.00046849,120]
[354681551,1740613844342,-500.0,0.00046849,120]
[354681552,1740613844353,-500.0,0.00046849,120]
[354681553,1740613844362,-500.0,0.00046849,120]
[354681554,1740613844371,-500.0,0.00046849,120]
[354681555,1740613844380,-500.0,0.00046849,120]
[354681556,1740613844390,-500.0,0.00046849,120]
[354681557,1740613844400,-545.98,0.00046849,120]
[354681558,1740613844411,-500.39498572,0.00046849,120]
[354681559,1740613844421,-541.95,0.00046849,120]
[354681560,1740613844430,-500.0,0.00046849,120]
[354681561,1740613844439,-361.71675107,0.00046849,120]
[354681562,1740613844447,-500.0,0.00046849,120]
[354681563,1740613844456,-500.0,0.00046849,120]
[354681564,1740613844465,-500.0,0.00046849,120]
[354681565,1740613844474,-500.0,0.00046849,120]
[354681566,1740613844483,-500.0,0.00046849,120]
[354681567,1740613844492,-500.0,0.00046849,120]
[354681568,1740613844503,-1805.32,0.00046849,120]
[354681569,1740613844514,-500.0,0.00046849,120]
[354681570,1740613844524,-507.6458509,0.00046849,120]
[354681571,1740613844534,-500.0,0.00046849,120]
[354681572,1740613844545,-500.0,0.00046849,120]
[354681573,1740613844555,-500.0,0.00046849,120]
[354681574,1740613844564,-880.12,0.00046849,120]
[354681575,1740613844573,-500.0,0.00046849,120]
[354681576,1740613844582,-500.0,0.00046849,120]
[354681577,1740613844591,-500.0,0.00046849,120]
[354681578,1740613844600,-500.0,0.00046849,120]
[354681579,1740613844609,-500.0,0.00046849,120]
[354681580,1740613844619,-500.0,0.00046849,120]
[354681581,1740613844628,-820.91,0.00046849,120]
[354681582,1740613844637,-500.0,0.00046849,120]
[354681583,1740613844648,-500.0,0.00046849,120]
[354681584,1740613844659,-500.0,0.00046849,120]
[354681585,1740613844668,-500.0,0.00046849,120]
[354681586,1740613844679,-500.0,0.00046849,120]
[354681587,1740613844688,-500.0,0.00046849,120]
[354681588,1740613844698,-500.0,0.00046849,120]
[354681589,1740613844707,-500.0,0.00046849,120]
[354681590,1740613844716,-500.0,0.00046849,45]
[354681591,1740613844725,-500.0,0.00046849,120]
[354681592,1740613844735,-500.0,0.00046849,120]
[354681593,1740613844744,-310.54283464,0.00046849,120]
[354681594,1740613844755,-500.0,0.00046849,120]
[354681595,1740613844764,-686.82,0.00046849,120]
[354681596,1740613844774,-500.0,0.00046849,120]
[354681597,1740613844783,-232.10608095,0.00046849,120]
[354681598,1740613844793,-2676.57,0.00046849,120]
[354681599,1740613844802,-500.0,0.00046849,120]
[354681600,1740613844811,-2734.71,0.00046849,120]
[354681601,1740613844820,-500.0,0.00046849,120]
[354681602,1740613844829,-500.0,0.00046849,120]
[354681603,1740613844838,-251.57735036,0.00046849,120]
[354681604,1740613844848,-500.0,0.00046849,120]
[354681605,1740613844857,-500.0,0.00046849,120]
[354681606,1740613844866,-503.57,0.00046849,120]
[354681607,1740613844875,-500.0,0.00046849,120]
[354681608,1740613844885,-500.0,0.00046849,120]
[354681609,1740613844894,-500.0,0.00046849,120]
[354681610,1740613844903,-678.88,0.00046849,120]
[354681611,1740613844913,-500.0,0.00046849,120]
[354681612,1740613844922,-500.0,0.00046849,120]
[354681613,1740613844931,-636.49,0.00046849,120]
[354681614,1740613844941,-500.0,0.00046849,120]
[354681615,1740613844950,-500.0,0.00046849,120]
[354681616,1740613844960,-500.0,0.00046849,120]
[354681617,1740613844969,-500.0,0.00046849,120]
[354681618,1740613844978,-500.0,0.00046849,120]
[354681619,1740613844987,-954.71,0.00046849,120]
[354681620,1740613844997,-500.0,0.00046849,120]
[354681621,1740613845007,-500.0,0.00046849,120]
[354681622,1740613845019,-500.0,0.00046849,120]
[354681623,1740613845029,-500.0,0.00046849,120]
[354681624,1740613845038,-485.27073423,0.00046849,120]
[354681625,1740613845071,-14.72926577,0.00046849,120]
[354681626,1740613845082,-500.0,0.00046849,120]
[354681627,1740613845092,-500.0,0.00046849,120]
[354681628,1740613845101,-375.36573423,0.00046849,120]
[354681629,1740613845114,-124.63426577,0.00046849,120]
[354681630,1740613845123,-500.0,0.00046849,120]
[354681631,1740613845132,-1045.34,0.00046849,120]
[354681632,1740613845142,-144.60477204,0.00046849,120]
[354681633,1740613845154,-355.39522796,0.00046849,120]
[354681634,1740613845163,-231.59223934,0.00046849,120]
[354681635,1740613845175,-268.40776066,0.00046849,120]
[354681636,1740613845185,-500.0,0.00046849,120]
[354681637,1740613845195,-153.63577998,0.00046849,120]
[354681638,1740613845204,-82.20645951,0.00046849,120]
[354681639,1740613845216,-418.78147824,0.00046849,120]
[354681640,1740613845225,-500.0,0.00046849,120]
[354681641,1740613845235,-500.0,0.00046849,120]
[354681642,1740613845244,-479.88252478,0.00046849,120]
[354681643,1740613845254,-548.72,0.00046849,120]
[354681644,1740613845264,-500.0,0.00046849,120]
[354681645,1740613845273,-500.0,0.00046849,120]
[354681646,1740613845283,-500.0,0.00046849,120]
[354681647,1740613845292,-500.0,0.00046849,120]
[354681648,1740613845302,-259.40794356,0.00046849,120]
[354681649,1740613845311,-500.0,0.00046849,120]
[354681650,1740613845320,-500.0,0.00046849,120]
[354681651,1740613845329,-500.0,0.00046849,120]
[354681652,1740613845461,-200.0,0.00046849,7]
[354681653,1740613845471,-500.0,0.00046849,120]
[354681654,1740613845481,-500.0,0.00046849,120]
[354681655,1740613845490,-1453.36,0.00046849,120]
[354681656,1740613845499,-500.0,0.00046849,120]
[354681657,1740613845509,-542.34,0.00046849,120]
[354681658,1740613845518,-1360.19,0.00046849,120]
[354681659,1740613845527,-500.0,0.00046849,120]
[354681660,1740613845537,-500.0,0.00046849,30]
[354681661,1740613845546,-500.0,0.00046849,120]
[354681662,1740613845555,-457.24653084,0.00046849,120]
[354681663,1740613845565,-500.0,0.00046849,120]
[354681664,1740613845575,-511.90675913,0.00046849,120]
[354681665,1740613845614,-481.56190107,0.00046849,120]
[354681666,1740613845625,-101.2613398,0.00046849,120]
[354681667,1740613845634,-208.20136375,0.00046849,120]
[354681676,1740613846512,-200.0,0.00035,120]
[354681677,1740613846521,-1122.623734,0.000397,2]
[354681678,1740613846531,-3735.40603008,0.00046575,120]
[354681679,1740613846542,-1560.60396992,0.00046575,120]
[354681680,1740613846551,-500.0,0.00046575,120]
[354681681,1740613846560,-500.0,0.00046575,120]
[354681682,1740613846570,-500.0,0.00046575,120]
[354681683,1740613846579,-500.0,0.00046575,120]
[354681684,1740613846588,-500.0,0.00046575,120]
[354681685,1740613846598,-500.0,0.00046575,120]
[354681686,1740613846607,-500.0,0.00046575,120]
[354681687,1740613846616,-500.0,0.00046575,120]
[354681688,1740613846626,-1073.92863625,0.00046849,120]
[354681689,1740613846635,-4704.5,0.00046849,3]
[354681690,1740613846644,-500.0,0.00046849,120]
[354681691,1740613846653,-500.0,0.00046849,120]
[354681692,1740613846662,-665.56,0.00046849,120]
[354681693,1740613846671,-500.0,0.00046849,120]
[354681694,1740613846680,-19265.7,0.00046849,120]
[354681695,1740613846689,-500.0,0.00046849,120]
[354681696,1740613846698,-500.0,0.00046849,120]
[354681697,1740613846707,-501.24955235,0.00046849,120]
[354681698,1740613846716,-186.44244791,0.00046849,120]
[354681699,1740613846726,-500.83049222,0.00046849,120]
[354681700,1740613846736,-621.98,0.00046849,120]
[354681701,1740613846747,-500.0,0.00046849,120]
[354681702,1740613846756,-500.0,0.00046849,120]
[354681703,1740613846765,-1000.0,0.00046849,20]
[354681704,1740613846774,-500.0,0.00046849,120]
[354681705,1740613846783,-500.0,0.00046849,120]
[354681706,1740613846792,-500.0,0.00046849,120]
[354681707,1740613846801,-500.0,0.00046849,120]
[354681708,1740613846811,-1022.93,0.00046849,120]
[354681709,1740613846820,-1236.04,0.00046849,120]
[354681710,1740613846829,-500.0,0.00046849,120]
[354681711,1740613846838,-500.0,0.00046849,120]
[354681712,1740613846848,-500.0,0.00046849,120]
[354681713,1740613846857,-1376.85,0.00046849,120]
[354681714,1740613846866,-500.0,0.00046849,120]
[354681715,1740613846875,-71297.28,0.00046849,7]
[354681716,1740613846885,-385.39539745,0.00046849,120]
[354681717,1740613846893,-500.0,0.00046849,120]
[354681718,1740613846902,-500.0,0.00046849,120]
[354681719,1740613846911,-508.35568566,0.00046849,120]
[354681720,1740613846920,-500.0,0.00046849,120]
[354681721,1740613846930,-500.0,0.00046849,120]
[354681722,1740613846939,-500.0,0.00046849,120]
[354681723,1740613846948,-500.0,0.00046849,120]
[354681724,1740613846958,-2089.2,0.00046849,120]
[354681725,1740613846968,-500.0,0.00046849,120]
[354681726,1740613846977,-500.0,0.00046849,120]
[354681727,1740613846986,-501.13974454,0.00046849,120]
[354681728,1740613846995,-507.92340326,0.00046849,120]
[354681729,1740613847006,-500.0,0.00046849,120]
[354681730,1740613847016,-500.0,0.00046849,120]
[354681731,1740613847026,-500.0,0.00046849,120]
[354681732,1740613847035,-500.0,0.00046849,120]
[354681733,1740613847044,-500.0,0.00046849,120]
[354681734,1740613847054,-3274.48,0.00046849,120]
[354681735,1740613847063,-515.9880935,0.00046849,120]
[354681736,1740613847075,-500.0,0.00046849,120]
[354681737,1740613847084,-500.0,0.00046849,120]
[354681738,1740613847093,-500.0,0.00046849,30]
[354681739,1740613847102,-1240.04,0.00046849,120]
[354681740,1740613847111,-1114.33,0.00046849,120]
[354681741,1740613847122,-274.63779959,0.00046849,120]
[354681742,1740613847131,-500.0,0.00046849,120]
[354681743,1740613847141,-1486.24,0.00046849,120]
[354681744,1740613847151,-500.0,0.00046849,120]
[354681745,1740613847161,-643.22,0.00046849,120]
[354681746,1740613847170,-500.0,0.00046849,120]
[354681747,1740613847179,-500.0,0.00046849,120]
[354681748,1740613847188,-5340.11,0.00046849,120]
[354681749,1740613847198,-500.0,0.00046849,120]
[354681750,1740613847208,-294.65218369,0.00046849,120]
[354681751,1740613847217,-500.0,0.00046849,30]
[354681752,1740613847226,-500.0,0.00046849,120]
[354681753,1740613847235,-870.96,0.00046849,120]
[354681754,1740613847244,-3920.44,0.00046849,120]
[354681755,1740613847253,-515.98146055,0.00046849,120]
[354681756,1740613847263,-500.0,0.00046849,120]
[354681757,1740613847272,-1000.0,0.00046849,2]
[354681758,1740613847282,-500.0,0.00046849,120]
[354681759,1740613847292,-500.0,0.00046849,30]
[354681760,1740613847302,-500.0,0.00046849,120]
[354681761,1740613847312,-500.0,0.00046849,120]
[354681762,1740613847323,-502.77333859,0.00046849,120]
[354681763,1740613847334,-500.0,0.00046849,120]